[Event "Late-Titled-Tuesday-Blitz-August-29-2023"]
[Site "Chess.com"]
[Date "2023.08.29"]
[Round "8"]
[White "GM_shahin"]
[Black "mistrzemi"]
[Result "1-0"]
[WhiteElo "2717"]
[BlackElo "2385"]
[TimeControl "180+1"]
[EndTime "15:27:51 PDT"]
[Termination "GM_shahin won by resignation"]

1. Nf3 {[%clk 0:03:00.9]} 1... Nf6 {[%clk 0:02:59.2]} 2. g3 {[%clk 0:03:00.9]}
2... e6 {[%clk 0:02:59.8]} 3. Bg2 {[%clk 0:03:01.3]} 3... d5 {[%clk 0:03:00.5]}
4. O-O {[%clk 0:03:02.2]} 4... Be7 {[%clk 0:03:01]} 5. d4 {[%clk 0:03:02.9]}
5... O-O {[%clk 0:03:01.7]} 6. c4 {[%clk 0:03:03.6]} 6... c6 {[%clk 0:03:00.7]}
7. Nc3 {[%clk 0:03:00.5]} 7... b6 {[%clk 0:03:00.4]} 8. Nd2 {[%clk 0:02:59.6]}
8... Ba6 {[%clk 0:02:56.3]} 9. b3 {[%clk 0:02:59.4]} 9... Nbd7 {[%clk
0:02:55.4]} 10. e4 {[%clk 0:02:59.9]} 10... Rc8 {[%clk 0:02:53.3]} 11. Re1
{[%clk 0:02:56.1]} 11... c5 {[%clk 0:02:02.1]} 12. e5 {[%clk 0:02:51.8]} 12...
Ne8 {[%clk 0:01:21.1]} 13. dxc5 {[%clk 0:02:29]} 13... d4 {[%clk 0:01:20.8]} 14.
Nce4 {[%clk 0:02:29.4]} 14... Nxc5 {[%clk 0:01:20.5]} 15. Nxc5 {[%clk
0:02:28.6]} 15... bxc5 {[%clk 0:01:13]} 16. Ne4 {[%clk 0:02:28.7]} 16... Qd7
{[%clk 0:01:09.8]} 17. Qg4 {[%clk 0:02:21.9]} 17... Bb7 {[%clk 0:01:08.4]} 18.
h4 {[%clk 0:02:21.9]} 18... Bxe4 {[%clk 0:00:39]} 19. Bxe4 {[%clk 0:02:18.7]}
19... f5 {[%clk 0:00:39.2]} 20. exf6 {[%clk 0:02:17]} 20... Nxf6 {[%clk
0:00:39.5]} 21. Qe2 {[%clk 0:02:16.5]} 21... Nxe4 {[%clk 0:00:39.8]} 22. Qxe4
{[%clk 0:02:17.4]} 22... Rc6 {[%clk 0:00:37.2]} 23. Bf4 {[%clk 0:02:16.9]} 23...
Bf6 {[%clk 0:00:32.5]} 24. Rad1 {[%clk 0:02:16.3]} 24... Re8 {[%clk 0:00:29.5]}
25. Be5 {[%clk 0:02:16.2]} 25... Ra6 {[%clk 0:00:27]} 26. Re2 {[%clk 0:02:15.3]}
26... Bxe5 {[%clk 0:00:22.3]} 27. Qxe5 {[%clk 0:02:16.2]} 27... Qd6 {[%clk
0:00:23.2]} 28. Qxd6 {[%clk 0:02:12]} 28... Rxd6 {[%clk 0:00:22.9]} 29. Re5
{[%clk 0:02:12.9]} 29... Rc8 {[%clk 0:00:21.7]} 30. f4 {[%clk 0:02:12.9]} 30...
Kf7 {[%clk 0:00:22.1]} 31. Kf2 {[%clk 0:02:13]} 31... a5 {[%clk 0:00:21.3]} 32.
Kf3 {[%clk 0:02:11.4]} 32... Rc7 {[%clk 0:00:19.3]} 33. h5 {[%clk 0:02:10.1]}
33... a4 {[%clk 0:00:19.2]} 34. f5 {[%clk 0:02:02.3]} 34... exf5 {[%clk
0:00:14.2]} 35. Rxf5+ {[%clk 0:02:03.2]} 35... Ke6 {[%clk 0:00:14.7]} 36. Kf4
{[%clk 0:02:00]} 36... axb3 {[%clk 0:00:14.1]} 37. axb3 {[%clk 0:02:00.7]} 37...
Rb7 {[%clk 0:00:05.8]} 38. Re1+ {[%clk 0:02:00.5]} 38... Kd7 {[%clk 0:00:06.1]}
39. Rf7+ {[%clk 0:01:59.2]} 39... Kc6 {[%clk 0:00:06.3]} 40. Rxb7 {[%clk
0:02:00.1]} 40... Kxb7 {[%clk 0:00:07.2]} 41. Re7+ {[%clk 0:02:00.3]} 41... Ka6
{[%clk 0:00:07]} 42. Ke5 {[%clk 0:01:27.1]} 42... d3 {[%clk 0:00:07.1]} 43. Kxd6
{[%clk 0:01:27.7]} 43... d2 {[%clk 0:00:07.6]} 44. Kxc5 {[%clk 0:01:09.9]} 44...
d1=Q {[%clk 0:00:07.6]} 45. Re6+ {[%clk 0:01:10.5]} 45... Kb7 {[%clk 0:00:02.7]}
46. Re7+ {[%clk 0:01:10.9]} 46... Kc8 {[%clk 0:00:03.1]} 47. Rxg7 {[%clk
0:01:11.4]} 47... Qxh5+ {[%clk 0:00:03.2]} 48. Kb4 {[%clk 0:01:11.2]} 48... Qh6
{[%clk 0:00:02.3]} 49. Rg4 {[%clk 0:01:04.4]} 49... Qd2+ {[%clk 0:00:01.9]} 50.
Kc5 {[%clk 0:00:59.3]} 50... Qd7 {[%clk 0:00:02.8]} 51. Rd4 {[%clk 0:00:57]}
51... Qe7+ {[%clk 0:00:02.9]} 52. Kb5 {[%clk 0:00:56.2]} 52... Kb7 {[%clk
0:00:03.1]} 53. Rd5 {[%clk 0:00:53.5]} 53... Qe8+ {[%clk 0:00:02.8]} 54. Kb4
{[%clk 0:00:52.6]} 54... Qf8+ {[%clk 0:00:02.8]} 55. c5 {[%clk 0:00:51.6]} 55...
Qf1 {[%clk 0:00:02.2]} 56. Rd7+ {[%clk 0:00:51.2]} 56... Kc6 {[%clk 0:00:02.8]}
57. Rd6+ {[%clk 0:00:51.2]} 57... Kc7 {[%clk 0:00:02.9]} 58. Re6 {[%clk
0:00:39.1]} 58... Qe1+ {[%clk 0:00:03.4]} 59. Rxe1 {[%clk 0:00:38.9]} 1-0

[Event "Late-Titled-Tuesday-Blitz-August-29-2023"]
[Site "Chess.com"]
[Date "2023.08.29"]
[Round "8"]
[White "FredddieCroderg"]
[Black "ritanovikova"]
[Result "1-0"]
[WhiteElo "2313"]
[BlackElo "2154"]
[TimeControl "180+1"]
[EndTime "15:27:53 PDT"]
[Termination "FredddieCroderg won by checkmate"]

1. e4 {[%clk 0:03:00.9]} 1... e5 {[%clk 0:02:54.2]} 2. Bc4 {[%clk 0:03:00.4]}
2... Nf6 {[%clk 0:02:51.7]} 3. Qf3 {[%clk 0:02:58.9]} 3... Bc5 {[%clk
0:02:48.2]} 4. d3 {[%clk 0:02:57.1]} 4... h6 {[%clk 0:02:47.3]} 5. Be3 {[%clk
0:02:56.3]} 5... Bxe3 {[%clk 0:02:45.7]} 6. fxe3 {[%clk 0:02:56]} 6... O-O
{[%clk 0:02:44.1]} 7. Nc3 {[%clk 0:02:53.8]} 7... c6 {[%clk 0:02:42.3]} 8. Nh3
{[%clk 0:02:46.7]} 8... d5 {[%clk 0:02:39.9]} 9. exd5 {[%clk 0:02:43.9]} 9...
Bg4 {[%clk 0:02:36.7]} 10. Qg3 {[%clk 0:02:38.2]} 10... cxd5 {[%clk 0:02:35.8]}
11. Bb3 {[%clk 0:02:38.2]} 11... d4 {[%clk 0:02:32.8]} 12. Nb1 {[%clk
0:02:23.4]} 12... dxe3 {[%clk 0:02:23.8]} 13. Qxe3 {[%clk 0:02:21.8]} 13... Nc6
{[%clk 0:02:20.7]} 14. O-O {[%clk 0:02:15.4]} 14... Qd6 {[%clk 0:02:01.3]} 15.
Nf2 {[%clk 0:02:13.3]} 15... Be6 {[%clk 0:01:58]} 16. Nc3 {[%clk 0:02:12.6]}
16... Nd4 {[%clk 0:01:51.7]} 17. Nfe4 {[%clk 0:02:09]} 17... Nxe4 {[%clk
0:01:50.5]} 18. Nxe4 {[%clk 0:02:09.1]} 18... Qe7 {[%clk 0:01:46.4]} 19. Bxe6
{[%clk 0:01:59.7]} 19... Qxe6 {[%clk 0:01:45.3]} 20. Rf2 {[%clk 0:01:46.9]}
20... b6 {[%clk 0:01:32.6]} 21. Rf6 {[%clk 0:01:02.8]} 21... Qg4 {[%clk
0:01:25.3]} 22. Qd2 {[%clk 0:00:30]} 22... Ne2+ {[%clk 0:01:01.4]} 23. Kh1
{[%clk 0:00:27.8]} 23... Nf4 {[%clk 0:00:49.4]} 24. Rc6 {[%clk 0:00:19.2]} 24...
f5 {[%clk 0:00:42.9]} 25. Ng3 {[%clk 0:00:16.4]} 25... Qg6 {[%clk 0:00:41.6]}
26. Rxg6 {[%clk 0:00:15.2]} 26... Nxg6 {[%clk 0:00:40.6]} 27. Rf1 {[%clk
0:00:15.7]} 27... f4 {[%clk 0:00:38.3]} 28. Ne4 {[%clk 0:00:15.9]} 28... Rad8
{[%clk 0:00:37]} 29. Qc3 {[%clk 0:00:15.8]} 29... Rfe8 {[%clk 0:00:35.5]} 30.
Qc6 {[%clk 0:00:15.6]} 30... Nh4 {[%clk 0:00:34.4]} 31. Qb7 {[%clk 0:00:15.4]}
31... Ra8 {[%clk 0:00:32.4]} 32. Nd6 {[%clk 0:00:14.7]} 32... Rf8 {[%clk
0:00:30.1]} 33. g3 {[%clk 0:00:14.3]} 33... fxg3 {[%clk 0:00:27.1]} 34. Rxf8+
{[%clk 0:00:11.5]} 34... Rxf8 {[%clk 0:00:27.8]} 35. hxg3 {[%clk 0:00:11.7]}
35... Nf3 {[%clk 0:00:24]} 36. Qxa7 {[%clk 0:00:11.1]} 36... Ne1 {[%clk
0:00:21.6]} 37. Qxb6 {[%clk 0:00:09.8]} 37... Nxc2 {[%clk 0:00:20.3]} 38. Qb3+
{[%clk 0:00:07.7]} 38... Kh7 {[%clk 0:00:20]} 39. Qxc2 {[%clk 0:00:08.2]} 39...
Rd8 {[%clk 0:00:19.2]} 40. d4+ {[%clk 0:00:08.3]} 40... g6 {[%clk 0:00:17.7]}
41. dxe5 {[%clk 0:00:09.2]} 41... Kg7 {[%clk 0:00:16.8]} 42. Qd3 {[%clk
0:00:09.4]} 42... Rf8 {[%clk 0:00:15.3]} 43. Qd4 {[%clk 0:00:09.6]} 43... Kh7
{[%clk 0:00:14.7]} 44. e6 {[%clk 0:00:09.4]} 44... h5 {[%clk 0:00:13.4]} 45. e7
{[%clk 0:00:09.6]} 45... Rb8 {[%clk 0:00:12.9]} 46. e8=Q {[%clk 0:00:09.1]}
46... Rxe8 {[%clk 0:00:12.7]} 47. Nxe8 {[%clk 0:00:09.4]} 47... Kh6 {[%clk
0:00:12.7]} 48. Qf6 {[%clk 0:00:09]} 48... h4 {[%clk 0:00:11.7]} 49. Qxh4#
{[%clk 0:00:07.5]} 1-0

[Event "Late-Titled-Tuesday-Blitz-August-29-2023"]
[Site "Chess.com"]
[Date "2023.08.29"]
[Round "8"]
[White "lamomiajunior"]
[Black "Goffredo_Fofi"]
[Result "0-1"]
[WhiteElo "2724"]
[BlackElo "2552"]
[TimeControl "180+1"]
[EndTime "15:27:54 PDT"]
[Termination "Goffredo_Fofi won by resignation"]

1. d4 {[%clk 0:03:00.9]} 1... g6 {[%clk 0:03:00.5]} 2. Nc3 {[%clk 0:03:01.2]}
2... Bg7 {[%clk 0:03:01.1]} 3. e4 {[%clk 0:03:01.8]} 3... c6 {[%clk 0:03:01.7]}
4. f4 {[%clk 0:02:57.7]} 4... d5 {[%clk 0:03:02.2]} 5. e5 {[%clk 0:02:58.4]}
5... h5 {[%clk 0:03:02.8]} 6. Nf3 {[%clk 0:02:58.6]} 6... Nh6 {[%clk 0:03:03.4]}
7. Bd3 {[%clk 0:02:58]} 7... Bf5 {[%clk 0:03:03.7]} 8. O-O {[%clk 0:02:57]} 8...
e6 {[%clk 0:03:03.4]} 9. Ne2 {[%clk 0:02:57.6]} 9... Bxd3 {[%clk 0:03:00.3]} 10.
Be3 {[%clk 0:02:58.3]} 10... Bxe2 {[%clk 0:02:59]} 11. Qxe2 {[%clk 0:02:59]}
11... Nf5 {[%clk 0:02:56]} 12. Bf2 {[%clk 0:02:56.4]} 12... Bf8 {[%clk
0:02:55.6]} 13. c4 {[%clk 0:02:55]} 13... dxc4 {[%clk 0:02:51.2]} 14. Qxc4
{[%clk 0:02:53.7]} 14... Nd7 {[%clk 0:02:48.8]} 15. Ng5 {[%clk 0:02:51.8]} 15...
Nb6 {[%clk 0:02:48.4]} 16. Qe2 {[%clk 0:02:48.1]} 16... Be7 {[%clk 0:02:44.4]}
17. Ne4 {[%clk 0:02:48.5]} 17... Nd5 {[%clk 0:02:44.3]} 18. g3 {[%clk
0:02:40.6]} 18... Qb6 {[%clk 0:02:22]} 19. Rfd1 {[%clk 0:02:39.8]} 19... Qb5
{[%clk 0:02:17]} 20. Qf3 {[%clk 0:02:36.4]} 20... a5 {[%clk 0:02:15]} 21. a4
{[%clk 0:02:35.6]} 21... Qb6 {[%clk 0:02:14.2]} 22. Rac1 {[%clk 0:02:34]} 22...
Qb4 {[%clk 0:02:04.7]} 23. b3 {[%clk 0:02:28.8]} 23... Qb6 {[%clk 0:02:01.2]}
24. Rc4 {[%clk 0:02:27.3]} 24... Qd8 {[%clk 0:02:00.6]} 25. h3 {[%clk
0:02:24.7]} 25... Rc8 {[%clk 0:01:50.4]} 26. Rdc1 {[%clk 0:02:22.6]} 26... Qd7
{[%clk 0:01:47.7]} 27. Rd1 {[%clk 0:02:13]} 27... b5 {[%clk 0:01:43.4]} 28. Rcc1
{[%clk 0:02:10.3]} 28... bxa4 {[%clk 0:01:36.8]} 29. bxa4 {[%clk 0:02:11.2]}
29... Kf8 {[%clk 0:01:31.3]} 30. Rb1 {[%clk 0:02:07.2]} 30... Kg7 {[%clk
0:01:28.3]} 31. Rbc1 {[%clk 0:01:54.6]} 31... Rb8 {[%clk 0:01:26.1]} 32. Rc2
{[%clk 0:01:54.4]} 32... Rb6 {[%clk 0:01:21.5]} 33. Rdc1 {[%clk 0:01:54.7]}
33... Rhb8 {[%clk 0:01:19.8]} 34. Nd2 {[%clk 0:01:37.2]} 34... Rb4 {[%clk
0:01:07.8]} 35. Qe4 {[%clk 0:00:52.8]} 35... c5 {[%clk 0:01:01.6]} 36. Rc4
{[%clk 0:00:52.2]} 36... cxd4 {[%clk 0:00:53.6]} 37. g4 {[%clk 0:00:47.1]} 37...
hxg4 {[%clk 0:00:52.9]} 38. hxg4 {[%clk 0:00:48]} 38... Nfe3 {[%clk 0:00:52.5]}
39. Rxd4 {[%clk 0:00:44.4]} 39... Nxg4 {[%clk 0:00:42.7]} 40. Bg3 {[%clk
0:00:40.7]} 40... Rxd4 {[%clk 0:00:37.7]} 41. Qxd4 {[%clk 0:00:41.4]} 41... Rb4
{[%clk 0:00:37.5]} 42. Qd3 {[%clk 0:00:39.3]} 42... Qxa4 {[%clk 0:00:33.5]} 43.
Rf1 {[%clk 0:00:32.1]} 43... Bc5+ {[%clk 0:00:29.6]} 44. Kh1 {[%clk 0:00:32]}
44... Rd4 {[%clk 0:00:26.3]} 45. Qe2 {[%clk 0:00:30.4]} 45... Qc2 {[%clk
0:00:21.4]} 46. Qxg4 {[%clk 0:00:28.5]} 46... Rxd2 {[%clk 0:00:18.8]} 47. f5
{[%clk 0:00:18.1]} 47... exf5 {[%clk 0:00:19]} 48. Qh4 {[%clk 0:00:17.2]} 48...
Qe4+ {[%clk 0:00:18]} 49. Qxe4 {[%clk 0:00:16.7]} 49... fxe4 {[%clk 0:00:18.9]}
50. Bh4 {[%clk 0:00:16.3]} 50... e3 {[%clk 0:00:17.7]} 51. Bg5 {[%clk
0:00:15.6]} 51... e2 {[%clk 0:00:13.4]} 52. Rg1 {[%clk 0:00:12.8]} 52... Rd1
{[%clk 0:00:13]} 53. Bh4 {[%clk 0:00:12.8]} 53... Rxg1+ {[%clk 0:00:12.9]} 0-1

[Event "Late-Titled-Tuesday-Blitz-August-29-2023"]
[Site "Chess.com"]
[Date "2023.08.29"]
[Round "8"]
[White "Zq1"]
[Black "jamengrand"]
[Result "1/2-1/2"]
[WhiteElo "2520"]
[BlackElo "2368"]
[TimeControl "180+1"]
[EndTime "15:27:54 PDT"]
[Termination "Game drawn by repetition"]

1. d4 {[%clk 0:03:00.9]} 1... d5 {[%clk 0:02:59.7]} 2. Nf3 {[%clk 0:02:59.6]}
2... Nf6 {[%clk 0:02:59.8]} 3. c4 {[%clk 0:02:59.2]} 3... e6 {[%clk 0:03:00]} 4.
e3 {[%clk 0:02:57.8]} 4... a6 {[%clk 0:02:59.6]} 5. Nbd2 {[%clk 0:02:53.7]} 5...
c5 {[%clk 0:02:56.3]} 6. cxd5 {[%clk 0:02:48.7]} 6... exd5 {[%clk 0:02:56]} 7.
Bd3 {[%clk 0:02:44.7]} 7... Nc6 {[%clk 0:02:53.2]} 8. dxc5 {[%clk 0:02:43.6]}
8... Bxc5 {[%clk 0:02:52.7]} 9. O-O {[%clk 0:02:42.2]} 9... O-O {[%clk
0:02:51.9]} 10. Nb3 {[%clk 0:02:38.4]} 10... Ba7 {[%clk 0:02:51.8]} 11. Bd2
{[%clk 0:02:38.2]} 11... Bg4 {[%clk 0:02:51.5]} 12. Be2 {[%clk 0:02:37.3]} 12...
Rc8 {[%clk 0:02:49]} 13. h3 {[%clk 0:02:28.2]} 13... Bh5 {[%clk 0:02:48.5]} 14.
Be1 {[%clk 0:02:12.5]} 14... Re8 {[%clk 0:02:45.3]} 15. Rc1 {[%clk 0:02:10.7]}
15... Bb8 {[%clk 0:02:34.2]} 16. Nfd4 {[%clk 0:01:46.4]} 16... Bxe2 {[%clk
0:02:29.4]} 17. Nxe2 {[%clk 0:01:37.6]} 17... Ne4 {[%clk 0:02:20.1]} 18. Nbd4
{[%clk 0:01:26.5]} 18... Qf6 {[%clk 0:02:12.4]} 19. Nxc6 {[%clk 0:01:21.9]}
19... bxc6 {[%clk 0:02:11.4]} 20. Bc3 {[%clk 0:01:12.5]} 20... Qd6 {[%clk
0:02:07]} 21. g3 {[%clk 0:01:08.6]} 21... c5 {[%clk 0:02:04.8]} 22. Nf4 {[%clk
0:01:02.3]} 22... Rcd8 {[%clk 0:02:04.4]} 23. Qf3 {[%clk 0:00:49.4]} 23... Qb6
{[%clk 0:01:41.2]} 24. Rfd1 {[%clk 0:00:35.4]} 24... Bxf4 {[%clk 0:01:35.9]} 25.
Qxf4 {[%clk 0:00:29.9]} 25... d4 {[%clk 0:01:21]} 26. exd4 {[%clk 0:00:28]}
26... cxd4 {[%clk 0:01:21.1]} 27. Be1 {[%clk 0:00:23.2]} 27... d3 {[%clk
0:01:13.5]} 28. Rc7 {[%clk 0:00:21.9]} 28... Qg6 {[%clk 0:00:27.2]} 29. Bc3
{[%clk 0:00:18.2]} 29... h6 {[%clk 0:00:18.1]} 30. h4 {[%clk 0:00:17.2]} 30...
Nxc3 {[%clk 0:00:17]} 31. Rxc3 {[%clk 0:00:16.3]} 31... Re2 {[%clk 0:00:14.3]}
32. Qf3 {[%clk 0:00:13.3]} 32... Rxb2 {[%clk 0:00:12.8]} 33. Rcxd3 {[%clk
0:00:12.5]} 33... Rxd3 {[%clk 0:00:12.6]} 34. Rxd3 {[%clk 0:00:11.7]} 34... Rxa2
{[%clk 0:00:11.2]} 35. Rd8+ {[%clk 0:00:10.4]} 35... Kh7 {[%clk 0:00:11.4]} 36.
Qa8 {[%clk 0:00:08.9]} 36... Qb1+ {[%clk 0:00:11.3]} 37. Kg2 {[%clk 0:00:08]}
37... Ra1 {[%clk 0:00:09.7]} 38. Rh8+ {[%clk 0:00:06.3]} 38... Kg6 {[%clk
0:00:10.2]} 39. Qc6+ {[%clk 0:00:04.1]} 39... f6 {[%clk 0:00:09.3]} 40. Qe8+
{[%clk 0:00:04]} 40... Kf5 {[%clk 0:00:09.3]} 41. Qd7+ {[%clk 0:00:04.3]} 41...
Kg6 {[%clk 0:00:09.4]} 42. Qe8+ {[%clk 0:00:04.3]} 42... Kf5 {[%clk 0:00:09.7]}
43. Qd7+ {[%clk 0:00:04.5]} 43... Kg6 {[%clk 0:00:09.7]} 44. h5+ {[%clk
0:00:04.5]} 44... Kxh5 {[%clk 0:00:04.3]} 45. Qh3+ {[%clk 0:00:03.8]} 45... Kg6
{[%clk 0:00:03.6]} 46. Qg4+ {[%clk 0:00:04]} 46... Kf7 {[%clk 0:00:03.8]} 47.
Qd7+ {[%clk 0:00:04]} 47... Kg6 {[%clk 0:00:04]} 48. Qg4+ {[%clk 0:00:04]} 48...
Kf7 {[%clk 0:00:04.6]} 49. Qd7+ {[%clk 0:00:04]} 49... Kg6 {[%clk 0:00:05.1]}
50. Qg4+ {[%clk 0:00:04.1]} 1/2-1/2

[Event "Late-Titled-Tuesday-Blitz-August-29-2023"]
[Site "Chess.com"]
[Date "2023.08.29"]
[Round "8"]
[White "trriinu"]
[Black "Mariia89"]
[Result "1-0"]
[WhiteElo "2213"]
[BlackElo "1958"]
[TimeControl "180+1"]
[EndTime "15:27:55 PDT"]
[Termination "trriinu won on time"]

1. e4 {[%clk 0:03:00.9]} 1... c6 {[%clk 0:01:26]} 2. d4 {[%clk 0:02:59.1]} 2...
d5 {[%clk 0:01:26.2]} 3. Nc3 {[%clk 0:02:58.9]} 3... dxe4 {[%clk 0:01:26.5]} 4.
Nxe4 {[%clk 0:02:59.8]} 4... Nf6 {[%clk 0:01:26.9]} 5. Nxf6+ {[%clk 0:03:00]}
5... exf6 {[%clk 0:01:27.6]} 6. Be3 {[%clk 0:02:59.8]} 6... Be7 {[%clk
0:01:28.2]} 7. Bd3 {[%clk 0:02:59.5]} 7... Na6 {[%clk 0:01:28.8]} 8. c3 {[%clk
0:02:59.4]} 8... Nc7 {[%clk 0:01:29.5]} 9. Qc2 {[%clk 0:02:59.1]} 9... Nd5
{[%clk 0:01:30.2]} 10. Bd2 {[%clk 0:02:59.5]} 10... Be6 {[%clk 0:01:30.6]} 11.
O-O-O {[%clk 0:02:58.9]} 11... b5 {[%clk 0:01:29.2]} 12. Ne2 {[%clk 0:02:58.7]}
12... Qa5 {[%clk 0:01:25]} 13. c4 {[%clk 0:02:27.4]} 13... Nb4 {[%clk
0:01:19.4]} 14. a3 {[%clk 0:02:26.7]} 14... Nxd3+ {[%clk 0:01:04.8]} 15. Qxd3
{[%clk 0:02:27.6]} 15... Qa4 {[%clk 0:01:03.4]} 16. c5 {[%clk 0:02:19.7]} 16...
a5 {[%clk 0:00:43.9]} 17. Nc3 {[%clk 0:02:09.1]} 17... Qb3 {[%clk 0:00:41.5]}
18. Qe4 {[%clk 0:01:44.5]} 18... O-O {[%clk 0:00:27.6]} 19. Rhe1 {[%clk
0:01:18.7]} 19... b4 {[%clk 0:00:27]} 20. axb4 {[%clk 0:01:14.3]} 20... axb4
{[%clk 0:00:26.9]} 21. Nb1 {[%clk 0:01:14.5]} 21... Ra1 {[%clk 0:00:17.3]} 22.
Bf4 {[%clk 0:00:55.1]} 22... Rfa8 {[%clk 0:00:17.1]} 23. Qc2 {[%clk 0:00:29.9]}
23... Qa2 {[%clk 0:00:15.7]} 24. Kd2 {[%clk 0:00:26.3]} 24... Bb3 {[%clk
0:00:13.4]} 25. Qc1 {[%clk 0:00:12.8]} 25... Bxd1 {[%clk 0:00:13.1]} 26. Rxd1
{[%clk 0:00:10.6]} 26... Qd5 {[%clk 0:00:10.8]} 27. Be3 {[%clk 0:00:09.4]} 27...
h6 {[%clk 0:00:08]} 28. Qc2 {[%clk 0:00:08.3]} 28... R1a2 {[%clk 0:00:07.4]} 29.
Ke1 {[%clk 0:00:06]} 29... b3 {[%clk 0:00:06.8]} 30. Qd2 {[%clk 0:00:04.7]}
30... Ra1 {[%clk 0:00:05.1]} 31. Kf1 {[%clk 0:00:04.3]} 31... Qc4+ {[%clk
0:00:04.2]} 32. Kg1 {[%clk 0:00:03.8]} 32... Qc2 {[%clk 0:00:04.5]} 33. Qe1
{[%clk 0:00:01.7]} 33... R1a2 {[%clk 0:00:02.8]} 34. Nc3 {[%clk 0:00:01.8]}
34... Rxb2 {[%clk 0:00:02.9]} 35. Ne2 {[%clk 0:00:01.6]} 35... Rba2 {[%clk
0:00:01.9]} 36. Ng3 {[%clk 0:00:02.5]} 36... Ra1 {[%clk 0:00:01.7]} 37. Rxa1
{[%clk 0:00:02.1]} 37... Rb8 {[%clk 0:00:01.5]} 38. Rb1 {[%clk 0:00:02]} 38...
b2 {[%clk 0:00:01.6]} 39. Ne2 {[%clk 0:00:02.4]} 1-0

[Event "Late-Titled-Tuesday-Blitz-August-29-2023"]
[Site "Chess.com"]
[Date "2023.08.29"]
[Round "8"]
[White "kingofthenil"]
[Black "VladimirKramnik"]
[Result "1/2-1/2"]
[WhiteElo "2715"]
[BlackElo "2953"]
[TimeControl "180+1"]
[EndTime "15:27:58 PDT"]
[Termination "Game drawn by repetition"]

1. Nf3 {[%clk 0:02:34.6]} 1... Nf6 {[%clk 0:02:58.6]} 2. c4 {[%clk 0:02:33.2]}
2... c5 {[%clk 0:02:56.4]} 3. b3 {[%clk 0:02:33.2]} 3... g6 {[%clk 0:02:51.3]}
4. d4 {[%clk 0:02:32.4]} 4... Bg7 {[%clk 0:02:49.8]} 5. Bb2 {[%clk 0:02:29.9]}
5... cxd4 {[%clk 0:02:49.6]} 6. Qxd4 {[%clk 0:02:29.4]} 6... O-O {[%clk
0:02:47.4]} 7. Nc3 {[%clk 0:02:28.4]} 7... Nc6 {[%clk 0:02:41.8]} 8. Qd2 {[%clk
0:02:28.4]} 8... Qa5 {[%clk 0:02:41.2]} 9. Rb1 {[%clk 0:02:14.4]} 9... d6 {[%clk
0:02:37.8]} 10. e3 {[%clk 0:02:05]} 10... Bf5 {[%clk 0:02:34.5]} 11. Bd3 {[%clk
0:02:05.1]} 11... Bxd3 {[%clk 0:02:28.3]} 12. Qxd3 {[%clk 0:02:04.1]} 12... d5
{[%clk 0:02:10]} 13. O-O {[%clk 0:01:56.5]} 13... dxc4 {[%clk 0:02:06.3]} 14.
Qxc4 {[%clk 0:01:56.7]} 14... Rac8 {[%clk 0:02:03]} 15. Qb5 {[%clk 0:01:55.7]}
15... Qxb5 {[%clk 0:01:59.2]} 16. Nxb5 {[%clk 0:01:56.6]} 16... Ne4 {[%clk
0:01:56.9]} 17. Bxg7 {[%clk 0:01:54]} 17... Kxg7 {[%clk 0:01:57.6]} 18. Rbc1
{[%clk 0:01:22.6]} 18... Nb4 {[%clk 0:01:43.8]} 19. a3 {[%clk 0:01:14.4]} 19...
Nd3 {[%clk 0:01:25.8]} 20. Rcd1 {[%clk 0:01:08.3]} 20... Rfd8 {[%clk 0:01:01.9]}
21. Nxa7 {[%clk 0:01:05.8]} 21... Rc3 {[%clk 0:00:59.7]} 22. Nb5 {[%clk
0:01:04.3]} 22... Rxb3 {[%clk 0:00:53]} 23. Nfd4 {[%clk 0:01:04.2]} 23... Ndxf2
{[%clk 0:00:49.7]} 24. Rxf2 {[%clk 0:00:48.1]} 24... Rxb5 {[%clk 0:00:38.4]} 25.
Rf4 {[%clk 0:00:39.1]} 25... Re5 {[%clk 0:00:33.3]} 26. Ne6+ {[%clk 0:00:31.8]}
26... Rxe6 {[%clk 0:00:33]} 27. Rxd8 {[%clk 0:00:32.7]} 27... Nd6 {[%clk
0:00:30.8]} 28. Kf2 {[%clk 0:00:27.1]} 28... g5 {[%clk 0:00:30.8]} 29. Rb4
{[%clk 0:00:25.7]} 29... Re5 {[%clk 0:00:26]} 30. Rd7 {[%clk 0:00:25.4]} 30...
h5 {[%clk 0:00:24.9]} 31. h4 {[%clk 0:00:15.1]} 31... g4 {[%clk 0:00:24.1]} 32.
a4 {[%clk 0:00:14.8]} 32... Kf6 {[%clk 0:00:21.5]} 33. e4 {[%clk 0:00:14.4]}
33... Nxe4+ {[%clk 0:00:20.2]} 34. Kf1 {[%clk 0:00:05.8]} 34... Nc5 {[%clk
0:00:19.6]} 35. Rc7 {[%clk 0:00:02.9]} 35... Nd3 {[%clk 0:00:19.3]} 36. Rb1
{[%clk 0:00:03.6]} 36... Rf5+ {[%clk 0:00:15]} 37. Kg1 {[%clk 0:00:03.6]} 37...
Ra5 {[%clk 0:00:13.9]} 38. Rbxb7 {[%clk 0:00:03.9]} 38... Rxa4 {[%clk
0:00:11.3]} 39. Rxe7 {[%clk 0:00:04.4]} 39... Ne5 {[%clk 0:00:09.3]} 40. Rxe5
{[%clk 0:00:04.4]} 40... Kxe5 {[%clk 0:00:08.8]} 41. Rxf7 {[%clk 0:00:04.9]}
41... g3 {[%clk 0:00:09]} 42. Rf3 {[%clk 0:00:02.3]} 42... Ra1+ {[%clk
0:00:08.4]} 43. Rf1 {[%clk 0:00:02.9]} 43... Ra3 {[%clk 0:00:06]} 44. Rf3 {[%clk
0:00:03.3]} 44... Rxf3 {[%clk 0:00:04.7]} 45. gxf3 {[%clk 0:00:03.6]} 45... Kf5
{[%clk 0:00:05]} 46. Kf1 {[%clk 0:00:04.2]} 46... Ke5 {[%clk 0:00:05.1]} 47. Kg1
{[%clk 0:00:03.9]} 47... Kf5 {[%clk 0:00:05.1]} 48. Kf1 {[%clk 0:00:04]} 48...
Ke5 {[%clk 0:00:05.1]} 49. Kg1 {[%clk 0:00:02.7]} 1/2-1/2